[Event "Titled Tuesday Blitz May 23 Late 2023"]
[White "Toncheva, Nadya"]
[Black "Dubreuil, Julien"]
[WhiteFideId "2924056"]
[BlackFideId "621285"]
[WhiteElo "2101"]
[BlackElo "2318"]
[Result "1-0"]
[Round "07"]
[TimeControl "180+2"]
[Date "2023.05.23"]
[WhiteClock "0:00:08"]
[BlackClock "0:00:02"]

1. e4 {[%clk 0:03:00]}  c5 {[%clk 0:02:59]} 2. c3 {[%clk 0:03:00]}  Nf6 {[%clk 0:02:59]} 3. e5 {[%clk 0:03:00]}  Nd5 {[%clk 0:02:59]} 4. Nf3 {[%clk 0:03:01]}  Nc6 {[%clk 0:02:58]} 5. Bc4 {[%clk 0:03:02]}  Nb6 {[%clk 0:02:58]} 6. Bb3 {[%clk 0:03:02]}  d6 {[%clk 0:02:58]} 7. exd6 {[%clk 0:03:00]}  Qxd6 {[%clk 0:02:57]} 8. O-O {[%clk 0:03:00]}  e6 {[%clk 0:02:57]} 9. d4 {[%clk 0:02:56]}  cxd4 {[%clk 0:02:56]} 10. cxd4 {[%clk 0:02:56]}  Be7 {[%clk 0:02:55]} 11. Nc3 {[%clk 0:02:56]}  O-O {[%clk 0:02:54]} 12. a3 {[%clk 0:02:31]}  Bf6 {[%clk 0:02:42]} 13. Be3 {[%clk 0:02:31]}  Nd5 {[%clk 0:02:39]} 14. Ne4 {[%clk 0:02:24]}  Qd8 {[%clk 0:02:39]} 15. Bc2 {[%clk 0:02:22]}  b6 {[%clk 0:02:34]} 16. Qd3 {[%clk 0:02:21]}  g6 {[%clk 0:02:21]} 17. Nxf6+ {[%clk 0:02:10]}  Qxf6 {[%clk 0:02:22]} 18. Bg5 {[%clk 0:02:04]}  Qg7 {[%clk 0:02:21]} 19. Qd2 {[%clk 0:01:46]}  Re8 {[%clk 0:02:10]} 20. Ba4 {[%clk 0:01:43]}  Bb7 {[%clk 0:02:09]} 21. Rac1 {[%clk 0:01:37]}  Rec8 {[%clk 0:02:08]} 22. Rfe1 {[%clk 0:01:31]}  Na5 {[%clk 0:02:04]} 23. Ne5 {[%clk 0:01:19]}  f6 {[%clk 0:01:56]} 24. Bh6 {[%clk 0:01:19]}  Qe7 {[%clk 0:01:56]} 25. Nf3 {[%clk 0:01:07]}  Nc4 {[%clk 0:01:53]} 26. Qe2 {[%clk 0:01:04]}  Kf7 {[%clk 0:01:28]} 27. Bb3 {[%clk 0:00:54]}  b5 {[%clk 0:01:20]} 28. h4 {[%clk 0:00:40]}  Ncb6 {[%clk 0:01:08]} 29. Rcd1 {[%clk 0:00:34]}  Qd6 {[%clk 0:00:59]} 30. Ne5+ {[%clk 0:00:27]}  Kg8 {[%clk 0:00:50]} 31. Ng4 {[%clk 0:00:24]}  Re8 {[%clk 0:00:47]} 32. Qxb5 {[%clk 0:00:21]}  Qc6 {[%clk 0:00:39]} 33. Qxc6 {[%clk 0:00:20]}  Bxc6 {[%clk 0:00:38]} 34. Ne3 {[%clk 0:00:20]}  Nxe3 {[%clk 0:00:35]} 35. Bxe3 {[%clk 0:00:20]}  Bd5 {[%clk 0:00:35]} 36. Bxd5 {[%clk 0:00:20]}  Nxd5 {[%clk 0:00:36]} 37. Bd2 {[%clk 0:00:20]}  Rec8 {[%clk 0:00:32]} 38. Rc1 {[%clk 0:00:21]}  Kf7 {[%clk 0:00:32]} 39. b4 {[%clk 0:00:20]}  Ke7 {[%clk 0:00:32]} 40. Kf1 {[%clk 0:00:20]}  Kd7 {[%clk 0:00:30]} 41. Ke2 {[%clk 0:00:20]}  a6 {[%clk 0:00:25]} 42. Kd3 {[%clk 0:00:20]}  Kd6 {[%clk 0:00:23]} 43. g3 {[%clk 0:00:20]}  Rab8 {[%clk 0:00:23]} 44. Rh1 {[%clk 0:00:18]}  h5 {[%clk 0:00:21]} 45. Rhe1 {[%clk 0:00:18]}  Ra8 {[%clk 0:00:20]} 46. Rxc8 {[%clk 0:00:17]}  Rxc8 {[%clk 0:00:20]} 47. Rc1 {[%clk 0:00:18]}  Rxc1 {[%clk 0:00:19]} 48. Bxc1 {[%clk 0:00:19]}  Nb6 {[%clk 0:00:18]} 49. Kc3 {[%clk 0:00:15]}  Kd5 {[%clk 0:00:18]} 50. f3 {[%clk 0:00:12]}  Nc4 {[%clk 0:00:17]} 51. a4 {[%clk 0:00:12]}  Nb6 {[%clk 0:00:16]} 52. Kb3 {[%clk 0:00:09]}  Nd7 {[%clk 0:00:15]} 53. Bb2 {[%clk 0:00:09]}  Nb6 {[%clk 0:00:15]} 54. b5 {[%clk 0:00:09]}  a5 {[%clk 0:00:15]} 55. Bc3 {[%clk 0:00:09]}  Nc4 {[%clk 0:00:12]} 56. Kc2 {[%clk 0:00:09]}  e5 {[%clk 0:00:12]} 57. dxe5 {[%clk 0:00:09]}  fxe5 {[%clk 0:00:12]} 58. Kd3 {[%clk 0:00:10]}  Nb6 {[%clk 0:00:11]} 59. Bxa5 {[%clk 0:00:10]}  Nxa4 {[%clk 0:00:10]} 60. Bb4 {[%clk 0:00:08]}  Nb2+ {[%clk 0:00:10]} 61. Ke2 {[%clk 0:00:08]}  Nc4 {[%clk 0:00:10]} 62. Bc3 {[%clk 0:00:08]}  Na3 {[%clk 0:00:10]} 63. b6 {[%clk 0:00:07]}  Nb5 {[%clk 0:00:04]} 64. b7 {[%clk 0:00:06]}  Nxc3+ {[%clk 0:00:04]} 65. Kd3 {[%clk 0:00:07]}  Na4 {[%clk 0:00:04]} 66. b8=Q {[%clk 0:00:07]}  Nc5+ {[%clk 0:00:05]} 67. Ke2 {[%clk 0:00:07]}  Ne6 {[%clk 0:00:04]} 68. Qg8 {[%clk 0:00:07]}  Kd6 {[%clk 0:00:03]} 69. Qxg6 {[%clk 0:00:08]}  Kd5 {[%clk 0:00:03]} 70. Qxh5 {[%clk 0:00:08]}  Nd4+ {[%clk 0:00:02]} 71. Kf2 {[%clk 0:00:08]} 1-0


[Site "https://www.chess.com"]

[Event "Titled Tuesday Blitz May 23 Late 2023"]
[White "Moral Garcia, Serafin"]
[Black "Cooklev, Steven"]
[WhiteFideId "2201925"]
[BlackFideId "2050552"]
[WhiteElo "2274"]
[BlackElo "2310"]
[Result "1-0"]
[Round "07"]
[TimeControl "180+2"]
[Date "2023.05.23"]
[WhiteClock "0:00:19"]
[BlackClock "0:00:09"]

1. c4 {[%clk 0:03:00]}  e5 {[%clk 0:02:59]} 2. Nc3 {[%clk 0:03:00]}  Nc6 {[%clk 0:02:59]} 3. g3 {[%clk 0:02:59]}  f5 {[%clk 0:02:59]} 4. Bg2 {[%clk 0:02:59]}  Nf6 {[%clk 0:02:59]} 5. e3 {[%clk 0:02:50]}  d5 {[%clk 0:02:53]} 6. cxd5 {[%clk 0:02:47]}  Nb4 {[%clk 0:02:53]} 7. d4 {[%clk 0:02:46]}  e4 {[%clk 0:02:53]} 8. f3 {[%clk 0:02:39]}  Nd3+ {[%clk 0:02:33]} 9. Kf1 {[%clk 0:02:38]}  Bd6 {[%clk 0:02:03]} 10. fxe4 {[%clk 0:02:18]}  fxe4 {[%clk 0:02:04]} 11. Bxe4 {[%clk 0:02:02]}  Nxe4 {[%clk 0:02:00]} 12. Nxe4 {[%clk 0:02:01]}  O-O+ {[%clk 0:01:57]} 13. Kg2 {[%clk 0:02:00]}  Bf5 {[%clk 0:01:41]} 14. Nc3 {[%clk 0:01:27]}  Qe7 {[%clk 0:01:31]} 15. Nf3 {[%clk 0:01:13]}  Be4 {[%clk 0:01:08]} 16. Rf1 {[%clk 0:01:11]}  Rf6 {[%clk 0:01:03]} 17. Kg1 {[%clk 0:01:04]}  Raf8 {[%clk 0:01:00]} 18. Nd2 {[%clk 0:00:44]}  Bg6 {[%clk 0:00:48]} 19. Qe2 {[%clk 0:00:30]}  c5 {[%clk 0:00:18]} 20. dxc6 {[%clk 0:00:29]}  bxc6 {[%clk 0:00:19]} 21. Nf3 {[%clk 0:00:20]}  Bh5 {[%clk 0:00:17]} 22. Qxd3 {[%clk 0:00:20]}  Bg6 {[%clk 0:00:16]} 23. e4 {[%clk 0:00:20]}  c5 {[%clk 0:00:14]} 24. Bg5 {[%clk 0:00:20]}  cxd4 {[%clk 0:00:14]} 25. Bxf6 {[%clk 0:00:20]}  Qxf6 {[%clk 0:00:13]} 26. Nd5 {[%clk 0:00:20]}  Qd8 {[%clk 0:00:12]} 27. Nxd4 {[%clk 0:00:20]}  Be5 {[%clk 0:00:12]} 28. Rxf8+ {[%clk 0:00:20]}  Qxf8 {[%clk 0:00:11]} 29. Rf1 {[%clk 0:00:20]}  Qd6 {[%clk 0:00:12]} 30. Nf5 {[%clk 0:00:20]}  h6 {[%clk 0:00:11]} 31. Nxd6 {[%clk 0:00:19]}  Bxd6 {[%clk 0:00:09]} 32. Nf4 {[%clk 0:00:19]} 1-0


[Site "https://www.chess.com"]

[Event "Titled Tuesday Blitz May 23 Late 2023"]
[White "Kim, Sergey"]
[Black "Kostiukov, Alexandr"]
[WhiteFideId "13700570"]
[BlackFideId "14108100"]
[WhiteElo "2476"]
[BlackElo "2202"]
[Result "1-0"]
[Round "07"]
[TimeControl "180+2"]
[Date "2023.05.23"]
[WhiteClock "0:00:48"]
[BlackClock "0:00:00"]

1. d4 {[%clk 0:03:00]}  g6 {[%clk 0:02:59]} 2. c4 {[%clk 0:03:01]}  Bg7 {[%clk 0:03:00]} 3. Nc3 {[%clk 0:03:01]}  d6 {[%clk 0:03:00]} 4. e4 {[%clk 0:03:00]}  e5 {[%clk 0:03:01]} 5. Nge2 {[%clk 0:03:00]}  exd4 {[%clk 0:03:01]} 6. Nxd4 {[%clk 0:03:00]}  Nc6 {[%clk 0:03:02]} 7. Nxc6 {[%clk 0:02:59]}  bxc6 {[%clk 0:03:03]} 8. Be2 {[%clk 0:02:54]}  Ne7 {[%clk 0:03:01]} 9. O-O {[%clk 0:02:53]}  O-O {[%clk 0:03:01]} 10. Be3 {[%clk 0:02:53]}  c5 {[%clk 0:02:54]} 11. Qd2 {[%clk 0:02:51]}  Be6 {[%clk 0:02:53]} 12. Bh6 {[%clk 0:02:48]}  Nc6 {[%clk 0:02:34]} 13. Bxg7 {[%clk 0:02:46]}  Kxg7 {[%clk 0:02:35]} 14. f4 {[%clk 0:02:42]}  Nd4 {[%clk 0:02:14]} 15. Bd3 {[%clk 0:02:34]}  f5 {[%clk 0:02:11]} 16. Rae1 {[%clk 0:02:32]}  Qd7 {[%clk 0:02:09]} 17. e5 {[%clk 0:02:25]}  Rfe8 {[%clk 0:01:50]} 18. Qf2 {[%clk 0:02:11]}  Rab8 {[%clk 0:01:34]} 19. b3 {[%clk 0:02:08]}  Bg8 {[%clk 0:01:18]} 20. Qg3 {[%clk 0:01:57]}  Re7 {[%clk 0:00:56]} 21. Ne2 {[%clk 0:01:45]}  dxe5 {[%clk 0:00:53]} 22. fxe5 {[%clk 0:01:44]}  Nxe2+ {[%clk 0:00:46]} 23. Rxe2 {[%clk 0:01:43]}  Be6 {[%clk 0:00:41]} 24. Kh1 {[%clk 0:01:33]}  Rd8 {[%clk 0:00:38]} 25. Qg5 {[%clk 0:01:26]}  Rf7 {[%clk 0:00:36]} 26. Bc2 {[%clk 0:01:11]}  Qe7 {[%clk 0:00:33]} 27. Qg3 {[%clk 0:01:10]}  Rd4 {[%clk 0:00:33]} 28. Ref2 {[%clk 0:01:06]}  Kh8 {[%clk 0:00:27]} 29. Qe3 {[%clk 0:01:03]}  Qd7 {[%clk 0:00:26]} 30. h3 {[%clk 0:01:01]}  Kg7 {[%clk 0:00:24]} 31. Qg3 {[%clk 0:00:57]}  Kh8 {[%clk 0:00:20]} 32. Qg5 {[%clk 0:00:54]}  Qd8 {[%clk 0:00:18]} 33. Qh6 {[%clk 0:00:51]}  Qf8 {[%clk 0:00:16]} 34. Qe3 {[%clk 0:00:49]}  Qd8 {[%clk 0:00:08]} 35. Qc3 {[%clk 0:00:49]}  Kg8 {[%clk 0:00:00]} 36. Qa5 {[%clk 0:00:48]} 1-0


[Site "https://www.chess.com"]

[Event "Titled Tuesday Blitz May 23 Late 2023"]
[White "Mikhalsky, Vladimir"]
[Black "Simonovic, Miroslav"]
[WhiteFideId "14144352"]
[BlackFideId "919152"]
[WhiteElo "2236"]
[BlackElo "2042"]
[Result "1-0"]
[Round "07"]
[TimeControl "180+2"]
[Date "2023.05.23"]
[WhiteClock "0:00:33"]
[BlackClock "0:00:05"]

1. d4 {[%clk 0:02:58]}  Nf6 {[%clk 0:03:00]} 2. c4 {[%clk 0:02:58]}  c5 {[%clk 0:03:00]} 3. d5 {[%clk 0:02:57]}  b5 {[%clk 0:03:01]} 4. f3 {[%clk 0:02:54]}  bxc4 {[%clk 0:03:00]} 5. e4 {[%clk 0:02:54]}  d6 {[%clk 0:03:00]} 6. Bxc4 {[%clk 0:02:53]}  g6 {[%clk 0:03:00]} 7. b3 {[%clk 0:02:51]}  Bg7 {[%clk 0:03:01]} 8. Bb2 {[%clk 0:02:51]}  O-O {[%clk 0:03:00]} 9. Ne2 {[%clk 0:02:51]}  Ba6 {[%clk 0:02:59]} 10. Nd2 {[%clk 0:02:49]}  Bxc4 {[%clk 0:02:54]} 11. Nxc4 {[%clk 0:02:40]}  Nbd7 {[%clk 0:02:54]} 12. O-O {[%clk 0:02:37]}  Qc7 {[%clk 0:02:52]} 13. Bc3 {[%clk 0:02:34]}  a5 {[%clk 0:02:51]} 14. a4 {[%clk 0:02:30]}  Rfb8 {[%clk 0:02:48]} 15. Rb1 {[%clk 0:02:30]}  Ne8 {[%clk 0:02:30]} 16. Bxg7 {[%clk 0:02:26]}  Kxg7 {[%clk 0:02:30]} 17. Nc3 {[%clk 0:02:26]}  Nb6 {[%clk 0:02:23]} 18. Nb5 {[%clk 0:02:24]}  Qd7 {[%clk 0:02:23]} 19. Qd2 {[%clk 0:02:23]}  Nc7 {[%clk 0:02:23]} 20. Nxc7 {[%clk 0:02:13]}  Nxc4 {[%clk 0:02:20]} 21. bxc4 {[%clk 0:02:11]}  Qxc7 {[%clk 0:02:10]} 22. Rb5 {[%clk 0:02:10]}  Rxb5 {[%clk 0:02:07]} 23. axb5 {[%clk 0:02:10]}  a4 {[%clk 0:02:02]} 24. Ra1 {[%clk 0:02:09]}  Qa5 {[%clk 0:01:56]} 25. Qxa5 {[%clk 0:02:07]}  Rxa5 {[%clk 0:01:57]} 26. Ra3 {[%clk 0:02:05]}  Kf6 {[%clk 0:01:53]} 27. f4 {[%clk 0:02:01]}  h5 {[%clk 0:01:43]} 28. Kf2 {[%clk 0:02:01]}  h4 {[%clk 0:01:42]} 29. Kf3 {[%clk 0:01:59]}  g5 {[%clk 0:01:41]} 30. Kg4 {[%clk 0:01:52]}  gxf4 {[%clk 0:01:36]} 31. Kxf4 {[%clk 0:01:52]}  e6 {[%clk 0:01:29]} 32. dxe6 {[%clk 0:01:40]}  fxe6 {[%clk 0:01:29]} 33. e5+ {[%clk 0:01:33]}  dxe5+ {[%clk 0:01:27]} 34. Ke4 {[%clk 0:01:33]}  Ra8 {[%clk 0:01:21]} 35. g4 {[%clk 0:01:28]}  hxg3 {[%clk 0:01:20]} 36. hxg3 {[%clk 0:01:28]}  Ra7 {[%clk 0:01:11]} 37. g4 {[%clk 0:01:23]}  Rg7 {[%clk 0:01:06]} 38. Rxa4 {[%clk 0:01:15]}  Rxg4+ {[%clk 0:01:06]} 39. Kf3 {[%clk 0:01:14]}  Rd4 {[%clk 0:00:59]} 40. b6 {[%clk 0:01:12]}  Rd8 {[%clk 0:00:58]} 41. Ra5 {[%clk 0:01:10]}  Rb8 {[%clk 0:00:58]} 42. Rb5 {[%clk 0:01:09]}  Rb7 {[%clk 0:00:56]} 43. Ke4 {[%clk 0:01:09]}  Ke7 {[%clk 0:00:20]} 44. Kxe5 {[%clk 0:01:07]}  Kd7 {[%clk 0:00:20]} 45. Rxc5 {[%clk 0:00:46]}  Rxb6 {[%clk 0:00:20]} 46. Ra5 {[%clk 0:00:46]}  Rc6 {[%clk 0:00:14]} 47. c5 {[%clk 0:00:46]}  Rc7 {[%clk 0:00:12]} 48. Kd4 {[%clk 0:00:44]}  Kc6 {[%clk 0:00:11]} 49. Ra6+ {[%clk 0:00:44]}  Kb5 {[%clk 0:00:11]} 50. Rb6+ {[%clk 0:00:44]}  Ka5 {[%clk 0:00:11]} 51. Rxe6 {[%clk 0:00:43]}  Rc8 {[%clk 0:00:05]} 52. Rb6 {[%clk 0:00:40]}  Rd8+ {[%clk 0:00:04]} 53. Kc4 {[%clk 0:00:40]}  Rg8 {[%clk 0:00:03]} 54. Rb1 {[%clk 0:00:40]}  Rg2 {[%clk 0:00:02]} 55. Kd5 {[%clk 0:00:39]}  Rg5+ {[%clk 0:00:02]} 56. Kd4 {[%clk 0:00:38]}  Rg4+ {[%clk 0:00:02]} 57. Ke5 {[%clk 0:00:38]}  Rg5+ {[%clk 0:00:02]} 58. Kd6 {[%clk 0:00:38]}  Rg6+ {[%clk 0:00:02]} 59. Kc7 {[%clk 0:00:38]}  Rg7+ {[%clk 0:00:02]} 60. Kb8 {[%clk 0:00:38]}  Rg8+ {[%clk 0:00:01]} 61. Ka7 {[%clk 0:00:37]}  Rg7+ {[%clk 0:00:01]} 62. Rb7 {[%clk 0:00:36]}  Rg5 {[%clk 0:00:02]} 63. c6 {[%clk 0:00:36]}  Rc5 {[%clk 0:00:02]} 64. c7 {[%clk 0:00:36]}  Rxc7 {[%clk 0:00:03]} 65. Rxc7 {[%clk 0:00:36]}  Kb5 {[%clk 0:00:04]} 66. Kb7 {[%clk 0:00:33]}  Kb4 {[%clk 0:00:05]} 1-0


[Site "https://www.chess.com"]

[Event "Titled Tuesday Blitz May 23 Late 2023"]
[White "lluiss"]
[Black "Vaglio Munoz, Jaime"]
[BlackFideId "6500145"]
[WhiteElo "2259"]
[BlackElo "2199"]
[Result "0-1"]
[Round "07"]
[TimeControl "180+2"]
[Date "2023.05.23"]
[WhiteClock "0:00:00"]
[BlackClock "0:00:56"]

1. Nf3 {[%clk 0:03:00]}  c6 {[%clk 0:02:56]} 2. d4 {[%clk 0:03:00]}  Qa5+ {[%clk 0:02:54]} 3. c3 {[%clk 0:02:54]}  d6 {[%clk 0:02:50]} 4. g3 {[%clk 0:02:50]}  Nf6 {[%clk 0:02:49]} 5. Bg2 {[%clk 0:02:50]}  Qh5 {[%clk 0:02:48]} 6. Nbd2 {[%clk 0:02:28]}  Bh3 {[%clk 0:02:45]} 7. Bxh3 {[%clk 0:02:21]}  Qxh3 {[%clk 0:02:46]} 8. Qb3 {[%clk 0:02:21]}  Qc8 {[%clk 0:02:44]} 9. e4 {[%clk 0:02:19]}  e6 {[%clk 0:02:43]} 10. e5 {[%clk 0:02:19]}  dxe5 {[%clk 0:02:43]} 11. Nxe5 {[%clk 0:02:19]}  Nbd7 {[%clk 0:02:43]} 12. Ndf3 {[%clk 0:02:16]}  Bd6 {[%clk 0:02:42]} 13. Bf4 {[%clk 0:02:15]}  Qc7 {[%clk 0:02:41]} 14. Nxd7 {[%clk 0:02:13]}  Nxd7 {[%clk 0:02:38]} 15. Bxd6 {[%clk 0:02:12]}  Qxd6 {[%clk 0:02:38]} 16. Qxb7 {[%clk 0:02:07]}  Rb8 {[%clk 0:02:37]} 17. Qxa7 {[%clk 0:02:07]}  Rxb2 {[%clk 0:02:37]} 18. O-O {[%clk 0:02:07]}  O-O {[%clk 0:02:36]} 19. Rfb1 {[%clk 0:01:49]}  Rfb8 {[%clk 0:02:34]} 20. Rxb2 {[%clk 0:01:23]}  Rxb2 {[%clk 0:02:35]} 21. Qa8+ {[%clk 0:01:15]}  Rb8 {[%clk 0:02:33]} 22. Qa4 {[%clk 0:01:14]}  h6 {[%clk 0:02:33]} 23. Qc2 {[%clk 0:01:10]}  c5 {[%clk 0:02:32]} 24. a4 {[%clk 0:01:08]}  cxd4 {[%clk 0:02:31]} 25. cxd4 {[%clk 0:01:08]}  Nb6 {[%clk 0:02:29]} 26. a5 {[%clk 0:01:05]}  Nd5 {[%clk 0:02:28]} 27. Ne5 {[%clk 0:01:01]}  Qa6 {[%clk 0:02:19]} 28. Qc4 {[%clk 0:00:56]}  Qa8 {[%clk 0:02:00]} 29. Qc6 {[%clk 0:00:52]}  Qa7 {[%clk 0:01:54]} 30. Nd7 {[%clk 0:00:40]}  Rd8 {[%clk 0:01:46]} 31. Nb6 {[%clk 0:00:36]}  Qa6 {[%clk 0:01:35]} 32. Qc5 {[%clk 0:00:26]}  Nf6 {[%clk 0:01:29]} 33. Rc1 {[%clk 0:00:23]}  Qe2 {[%clk 0:01:26]} 34. Qc2 {[%clk 0:00:16]}  Qh5 {[%clk 0:01:24]} 35. Kg2 {[%clk 0:00:11]}  Qxa5 {[%clk 0:01:22]} 36. Nc4 {[%clk 0:00:08]}  Qd5+ {[%clk 0:01:21]} 37. Kg1 {[%clk 0:00:06]}  Qxd4 {[%clk 0:01:21]} 38. Ne3 {[%clk 0:00:05]}  Nd5 {[%clk 0:01:18]} 39. Nxd5 {[%clk 0:00:04]}  Rxd5 {[%clk 0:01:14]} 40. Qc8+ {[%clk 0:00:03]}  Kh7 {[%clk 0:01:14]} 41. Qc2+ {[%clk 0:00:04]}  g6 {[%clk 0:01:11]} 42. Qc3 {[%clk 0:00:04]}  Qe4 {[%clk 0:01:07]} 43. Qc2 {[%clk 0:00:04]}  Qf3 {[%clk 0:01:04]} 44. Qc3 {[%clk 0:00:03]}  Rd3 {[%clk 0:01:03]} 45. Qc7 {[%clk 0:00:02]}  h5 {[%clk 0:01:01]} 46. Qc5 {[%clk 0:00:02]}  h4 {[%clk 0:00:59]} 47. gxh4 {[%clk 0:00:00]}  Qg4+ {[%clk 0:00:56]} 0-1


[Site "https://www.chess.com"]

[Event "Titled Tuesday Blitz May 23 Late 2023"]
[White "Djordjevic, Dejan N"]
[Black "FuenfgegenWilly"]
[WhiteFideId "913316"]
[WhiteElo "2261"]
[BlackElo "2361"]
[Result "0-1"]
[Round "07"]
[TimeControl "180+2"]
[Date "2023.05.23"]
[WhiteClock "0:00:07"]
[BlackClock "0:00:12"]

1. e4 {[%clk 0:02:56]}  e5 {[%clk 0:02:59]} 2. Nf3 {[%clk 0:02:56]}  Nc6 {[%clk 0:02:59]} 3. Bc4 {[%clk 0:02:55]}  Nf6 {[%clk 0:02:59]} 4. d3 {[%clk 0:02:55]}  h6 {[%clk 0:02:54]} 5. O-O {[%clk 0:02:54]}  d6 {[%clk 0:02:53]} 6. Re1 {[%clk 0:02:51]}  Ne7 {[%clk 0:02:53]} 7. Nbd2 {[%clk 0:02:50]}  g5 {[%clk 0:02:51]} 8. Nf1 {[%clk 0:02:49]}  Ng6 {[%clk 0:02:51]} 9. Ng3 {[%clk 0:02:49]}  g4 {[%clk 0:02:48]} 10. Nd2 {[%clk 0:02:47]}  h5 {[%clk 0:02:47]} 11. Nb3 {[%clk 0:02:39]}  Be7 {[%clk 0:02:44]} 12. d4 {[%clk 0:02:36]}  exd4 {[%clk 0:02:38]} 13. Nxd4 {[%clk 0:02:34]}  Ne5 {[%clk 0:02:38]} 14. Bf1 {[%clk 0:02:26]}  h4 {[%clk 0:02:33]} 15. Ngf5 {[%clk 0:02:25]}  h3 {[%clk 0:02:31]} 16. Bf4 {[%clk 0:02:14]}  Ng6 {[%clk 0:02:13]} 17. Bg3 {[%clk 0:02:12]}  Kf8 {[%clk 0:02:00]} 18. Qe2 {[%clk 0:01:52]}  c5 {[%clk 0:01:51]} 19. Nxe7 {[%clk 0:01:51]}  Qxe7 {[%clk 0:01:47]} 20. Nb5 {[%clk 0:01:48]}  Ne5 {[%clk 0:01:45]} 21. Rad1 {[%clk 0:01:46]}  hxg2 {[%clk 0:01:38]} 22. Bxg2 {[%clk 0:01:45]}  Ne8 {[%clk 0:01:32]} 23. Qd2 {[%clk 0:01:40]}  f6 {[%clk 0:00:52]} 24. Nxd6 {[%clk 0:01:37]}  Nxd6 {[%clk 0:00:51]} 25. Qxd6 {[%clk 0:01:37]}  Qxd6 {[%clk 0:00:52]} 26. Rxd6 {[%clk 0:01:36]}  Ke7 {[%clk 0:00:52]} 27. Bxe5 {[%clk 0:01:31]}  fxe5 {[%clk 0:00:52]} 28. Rd5 {[%clk 0:01:31]}  Be6 {[%clk 0:00:46]} 29. Rxc5 {[%clk 0:01:24]}  Rac8 {[%clk 0:00:45]} 30. Rxc8 {[%clk 0:01:17]}  Rxc8 {[%clk 0:00:46]} 31. c3 {[%clk 0:01:17]}  Rd8 {[%clk 0:00:42]} 32. Bf1 {[%clk 0:00:55]}  a5 {[%clk 0:00:31]} 33. Kg2 {[%clk 0:00:51]}  a4 {[%clk 0:00:29]} 34. a3 {[%clk 0:00:34]}  Rd2 {[%clk 0:00:26]} 35. Re2 {[%clk 0:00:33]}  Rd1 {[%clk 0:00:26]} 36. Re3 {[%clk 0:00:27]}  Rd2 {[%clk 0:00:20]} 37. Bb5 {[%clk 0:00:26]}  Rxb2 {[%clk 0:00:15]} 38. Bxa4 {[%clk 0:00:26]}  Ra2 {[%clk 0:00:15]} 39. c4 {[%clk 0:00:24]}  Bxc4 {[%clk 0:00:14]} 40. Bd1 {[%clk 0:00:23]}  Be6 {[%clk 0:00:13]} 41. Kg3 {[%clk 0:00:23]}  Rd2 {[%clk 0:00:13]} 42. f3 {[%clk 0:00:22]}  Rxd1 {[%clk 0:00:12]} 43. fxg4 {[%clk 0:00:21]}  Rg1+ {[%clk 0:00:12]} 44. Kf2 {[%clk 0:00:20]}  Rxg4 {[%clk 0:00:13]} 45. a4 {[%clk 0:00:20]}  Rf4+ {[%clk 0:00:13]} 46. Ke2 {[%clk 0:00:19]}  Bc4+ {[%clk 0:00:13]} 47. Kd2 {[%clk 0:00:19]}  Ba6 {[%clk 0:00:13]} 48. h3 {[%clk 0:00:18]}  Rf2+ {[%clk 0:00:13]} 49. Kc3 {[%clk 0:00:19]}  Rh2 {[%clk 0:00:14]} 50. Kb4 {[%clk 0:00:18]}  Kd6 {[%clk 0:00:14]} 51. Ka5 {[%clk 0:00:07]}  Kc5 {[%clk 0:00:12]} 0-1


[Site "https://www.chess.com"]

[Event "Titled Tuesday Blitz May 23 Late 2023"]
[White "Chabris, Christopher"]
[Black "Osiecki, Stanislaw"]
[WhiteFideId "2005263"]
[BlackFideId "1102990"]
[WhiteElo "2355"]
[BlackElo "2088"]
[Result "1-0"]
[Round "07"]
[TimeControl "180+2"]
[Date "2023.05.23"]
[WhiteClock "0:00:23"]
[BlackClock "0:00:22"]

1. e4 {[%clk 0:03:00]}  e6 {[%clk 0:02:50]} 2. d4 {[%clk 0:03:00]}  d5 {[%clk 0:02:50]} 3. Nc3 {[%clk 0:03:00]}  Bb4 {[%clk 0:02:50]} 4. e5 {[%clk 0:03:00]}  c5 {[%clk 0:02:49]} 5. a3 {[%clk 0:03:00]}  Bxc3+ {[%clk 0:02:49]} 6. bxc3 {[%clk 0:03:01]}  Qc7 {[%clk 0:02:50]} 7. h4 {[%clk 0:03:01]}  cxd4 {[%clk 0:02:49]} 8. cxd4 {[%clk 0:03:01]}  Qc3+ {[%clk 0:02:49]} 9. Bd2 {[%clk 0:03:01]}  Qxd4 {[%clk 0:02:49]} 10. Nf3 {[%clk 0:03:01]}  Qe4+ {[%clk 0:02:49]} 11. Be3 {[%clk 0:03:00]}  Nc6 {[%clk 0:02:46]} 12. Bd3 {[%clk 0:02:59]}  Qg4 {[%clk 0:02:46]} 13. h5 {[%clk 0:02:55]}  Qxg2 {[%clk 0:02:37]} 14. Rg1 {[%clk 0:02:37]}  Qh3 {[%clk 0:02:36]} 15. Ng5 {[%clk 0:02:29]}  Qh4 {[%clk 0:02:27]} 16. Bb5 {[%clk 0:02:17]}  Ne7 {[%clk 0:02:25]} 17. Qf3 {[%clk 0:02:13]}  O-O {[%clk 0:02:15]} 18. Rh1 {[%clk 0:00:53]}  Nxe5 {[%clk 0:02:11]} 19. Rxh4 {[%clk 0:00:53]}  Nxf3+ {[%clk 0:02:10]} 20. Nxf3 {[%clk 0:00:54]}  Nf5 {[%clk 0:02:10]} 21. Rh1 {[%clk 0:00:53]}  Nd6 {[%clk 0:01:53]} 22. Be2 {[%clk 0:00:49]}  Bd7 {[%clk 0:01:51]} 23. Bc5 {[%clk 0:00:49]}  Ne4 {[%clk 0:01:43]} 24. Bxf8 {[%clk 0:00:48]}  Rxf8 {[%clk 0:01:42]} 25. Bd3 {[%clk 0:00:47]}  f5 {[%clk 0:01:41]} 26. Ne5 {[%clk 0:00:47]}  Be8 {[%clk 0:01:36]} 27. Ke2 {[%clk 0:00:36]}  b6 {[%clk 0:01:34]} 28. Rag1 {[%clk 0:00:36]}  Kh8 {[%clk 0:01:33]} 29. f4 {[%clk 0:00:35]}  b5 {[%clk 0:01:28]} 30. Bxe4 {[%clk 0:00:35]}  fxe4 {[%clk 0:01:28]} 31. Ke3 {[%clk 0:00:35]}  a5 {[%clk 0:01:26]} 32. Rg5 {[%clk 0:00:33]}  b4 {[%clk 0:01:23]} 33. axb4 {[%clk 0:00:33]}  axb4 {[%clk 0:01:23]} 34. Rhg1 {[%clk 0:00:33]}  Rg8 {[%clk 0:01:21]} 35. h6 {[%clk 0:00:33]}  g6 {[%clk 0:01:21]} 36. Ng4 {[%clk 0:00:32]}  Ba4 {[%clk 0:01:17]} 37. Re5 {[%clk 0:00:29]}  Rc8 {[%clk 0:01:00]} 38. Rxe6 {[%clk 0:00:28]}  Rc3+ {[%clk 0:01:00]} 39. Kd4 {[%clk 0:00:26]}  Rxc2 {[%clk 0:00:56]} 40. Re7 {[%clk 0:00:24]}  Rc8 {[%clk 0:00:22]} 41. Nf6 {[%clk 0:00:23]} 1-0


[Site "https://www.chess.com"]

[Event "Titled Tuesday Blitz May 23 Late 2023"]
[White "dorpato"]
[Black "Sarkar, Justin"]
[BlackFideId "2010011"]
[WhiteElo "2053"]
[BlackElo "2168"]
[Result "0-1"]
[Round "07"]
[TimeControl "180+2"]
[Date "2023.05.23"]
[WhiteClock "0:00:10"]
[BlackClock "0:00:42"]

1. e4 {[%clk 0:03:00]}  e5 {[%clk 0:02:58]} 2. d4 {[%clk 0:02:50]}  exd4 {[%clk 0:02:54]} 3. Nf3 {[%clk 0:02:39]}  Bb4+ {[%clk 0:02:45]} 4. c3 {[%clk 0:02:31]}  dxc3 {[%clk 0:02:45]} 5. Nxc3 {[%clk 0:02:27]}  Nf6 {[%clk 0:02:34]} 6. Bc4 {[%clk 0:01:40]}  O-O {[%clk 0:02:24]} 7. e5 {[%clk 0:01:29]}  d5 {[%clk 0:02:13]} 8. exf6 {[%clk 0:01:14]}  dxc4 {[%clk 0:02:12]} 9. fxg7 {[%clk 0:01:10]}  Qxd1+ {[%clk 0:01:58]} 10. Kxd1 {[%clk 0:01:08]}  Kxg7 {[%clk 0:01:58]} 11. Kc2 {[%clk 0:01:02]}  c6 {[%clk 0:01:52]} 12. Nd4 {[%clk 0:00:51]}  Na6 {[%clk 0:01:41]} 13. Be3 {[%clk 0:00:44]}  Be7 {[%clk 0:01:23]} 14. a3 {[%clk 0:00:40]}  c5 {[%clk 0:01:21]} 15. Nf3 {[%clk 0:00:31]}  Bf5+ {[%clk 0:01:18]} 16. Kd2 {[%clk 0:00:29]}  Rad8+ {[%clk 0:01:13]} 17. Ke2 {[%clk 0:00:17]}  Nc7 {[%clk 0:01:11]} 18. Rad1 {[%clk 0:00:17]}  Bd3+ {[%clk 0:01:06]} 19. Ke1 {[%clk 0:00:17]}  Bf6 {[%clk 0:00:59]} 20. Ne4 {[%clk 0:00:15]}  Bxe4 {[%clk 0:00:55]} 21. Bxc5 {[%clk 0:00:13]}  Rfe8 {[%clk 0:00:51]} 22. Rxd8 {[%clk 0:00:13]}  Rxd8 {[%clk 0:00:50]} 23. Bxa7 {[%clk 0:00:12]}  Bxb2 {[%clk 0:00:49]} 24. Bb6 {[%clk 0:00:12]}  c3 {[%clk 0:00:46]} 25. Bxc7 {[%clk 0:00:10]}  c2 {[%clk 0:00:44]} 26. Bf4 {[%clk 0:00:10]}  Rd1+ {[%clk 0:00:42]} 0-1


[Site "https://www.chess.com"]